bitfinex/quotes_SOLUSD_20220210
["timestamp","ask_amount","ask_price","bid_price","bid_amount"]
[1644456865947,44.24989155,113.07,113.01,12.46]
[1644456866550,13.2765,113.06,113.01,12.46]
[1644456866752,42.39560678,113.05,113.01,12.46]
[1644456867852,13.2771,113.04,113.01,57.53737869]
[1644456868251,13.2771,113.04,113.01,12.46]
[1644456868451,4.423,113.06,113.01,12.46]
[1644456868654,1.24458932,113.07,113.01,12.46]
[1644456868853,13.2744,113.06,113.01,12.46]
[1644456869151,53.88154027,113.06,113.01,12.46]
[1644456870156,13.2744,113.06,113.02,35.16476761]
[1644456870556,13.2733,113.07,113.02,35.16476761]
[1644456871357,39.70482605,113.06,113.0,35.9028]
[1644456872359,39.70482605,113.06,113.01,37.76927337]
[1644456874585,13.2733,113.07,113.01,37.76927337]
[1644456875681,50.81632925,113.07,113.01,37.76927337]
[1644456878285,50.81632925,113.07,113.01,50.22927337]
[1644456879788,50.81632925,113.07,113.01,12.46]
[1644456881293,4.423,113.06,113.01,12.46]
[1644456881589,17.6974,113.06,113.01,12.46]
[1644456882397,37.76302075,113.05,113.01,12.46]
[1644456882592,59.04882075,113.05,113.01,12.46]
[1644456882796,59.04882075,113.05,112.99,12.484]
[1644456882993,59.04882075,113.05,112.97,12.484]
[1644456883593,59.04882075,113.05,112.97,61.14808078]
[1644456883793,51.03882075,113.05,112.97,61.14808078]
[1644456883993,52.28341007,113.05,112.97,12.484]
[1644456884197,54.48979519,113.05,112.97,12.484]
[1644456884394,5.66858932,113.04,112.97,12.484]
[1644456884594,13.2818,113.02,112.97,0.024]
[1644456884823,13.2818,113.02,112.94,12.484]
[1644456884824,17.7058,113.02,112.94,12.484]
[1644456884994,38.25191839,113.01,112.94,12.484]
[1644456885195,4.425,113.0,112.94,12.484]
[1644456885395,42.58981415,112.99,112.94,12.484]
[1644456885596,42.58981415,112.99,112.95,0.024]
[1644456885799,55.87231415,112.99,112.94,12.46]
[1644456885998,60.29831415,112.99,112.94,12.46]
[1644456887098,55.87231415,112.99,112.94,12.46]
[1644456887299,55.87231415,112.99,112.94,48.38876115]
[1644456888099,13.2825,112.99,112.94,48.38876115]
[1644456889099,56.78527816,112.99,112.94,48.38876115]
[1644456889599,13.2825,112.99,112.94,48.38876115]
[1644456890001,13.2815,113.0,112.94,48.38876115]
[1644456890900,40.5361444,112.99,112.94,48.38876115]
[1644456891110,53.8194444,112.99,112.94,48.38876115]
[1644456891499,53.8194444,112.99,112.94,12.46]
[1644456891707,64.8774444,112.99,112.93,0.024]
[1644456891900,4.426,112.98,112.92,0.024]
[1644456892100,13.2871,112.97,112.9,12.46]
[1644456892327,13.2871,112.97,112.9,12.484]
[1644456892503,57.59122979,112.97,112.91,39.7754917]
[1644456895806,13.2871,112.97,112.91,39.7754917]
[1644456896004,13.284,112.98,112.92,12.46]
[1644456896805,13.284,112.98,112.93,35.42548188]
[1644456897008,13.284,112.98,112.93,47.88548188]
[1644456897206,13.2827,112.99,112.93,47.88548188]
[1644456897407,13.2827,112.99,112.93,47.90948188]
[1644456897604,13.2827,112.99,112.93,47.88548188]
[1644456899507,4.426,113.0,112.93,49.7452729]
[1644456899706,13.2817,113.0,112.93,49.7692729]
[1644456905415,44.88615395,112.99,112.93,47.90948188]
[1644456905614,62.59485395,112.99,112.93,47.88548188]
[1644456905816,58.16885395,112.99,112.93,47.88548188]
[1644456906315,13.2827,112.99,112.93,47.88548188]
[1644456906517,4.426,113.01,112.93,49.74514718]
[1644456907016,13.2814,113.0,112.93,49.76914718]
[1644456908340,37.78832808,112.99,112.93,47.90948188]
[1644456908540,13.2814,113.0,112.93,47.88548188]
[1644456908741,17.7064,113.01,112.93,49.76914718]
[1644456910546,13.279,113.02,112.93,49.76914718]
[1644456910846,1.24458932,113.03,112.94,166.235]
[1644456911048,1.24458932,113.04,112.95,12.484]
[1644456911246,1.24458932,113.04,112.96,41.79648242]
[1644456911447,1.24458932,113.04,112.97,12.46]
[1644456911645,46.8181058,113.05,112.98,43.36757985]
[1644456911845,4.424,113.04,112.99,12.46]
[1644456912047,34.50567762,113.03,112.99,12.46]
[1644456912248,1.24458932,113.04,112.99,12.46]
[1644456912651,14.52138932,113.04,112.99,12.46]
[1644456913248,54.17687288,113.04,112.99,12.46]
[1644456913452,4.424,113.03,112.99,12.46]
[1644456913654,41.03924746,113.02,112.99,12.46]
[1644456913860,4.424,113.01,112.99,12.46]
[1644456914150,4.424,113.01,112.96,12.46]
[1644456914550,5.66858932,113.01,112.96,52.92271453]
[1644456914749,57.3083533,113.0,112.96,12.46]
[1644456915256,13.2819,113.0,112.96,12.46]
[1644456915652,13.2819,113.0,112.94,0.024]
[1644456915852,14.52648932,113.0,112.93,18.46]
[1644456916050,14.52648932,113.0,112.93,18.484]
[1644456916253,13.2819,113.0,112.94,36.12796473]
[1644456918253,13.2819,113.0,112.94,35.62796473]
[1644456920858,55.54924199,113.0,112.93,18.484]
[1644456921060,56.79383131,113.0,112.93,0.024]
[1644456921260,1.24458932,112.99,112.92,4.448]
[1644456921561,13.2886,112.97,112.92,0.024]
[1644456921760,17.7146,112.97,112.89,12.46]
[1644456921959,44.87815634,112.96,112.9,47.3842682]
[1644456922159,44.87815634,112.96,112.9,47.4082682]
[1644456922367,1.24458932,112.97,112.9,47.3842682]
[1644456922560,13.2893,112.95,112.9,47.4082682]
[1644456922759,13.2893,112.95,112.9,47.3842682]
[1644456925962,13.2893,112.95,112.9,46.8842682]
[1644456926863,4.426,112.97,112.9,46.8842682]
[1644456927063,48.1196,112.99,112.91,16.886]
[1644456927264,26.04528932,113.01,112.91,22.886]
[1644456927463,1.24458932,113.0,112.92,25.0207]
[1644456927664,1.24458932,113.0,112.93,16.91]
[1644456927863,1.24458932,113.0,112.93,57.46408602]
[1644456928764,13.2841,112.98,112.93,57.46408602]
[1644456928965,13.2841,112.98,112.93,53.03808602]
[1644456933275,10.7841,112.98,112.93,53.03808602]
[1644456935193,13.2827,112.99,112.93,53.03808602]
[1644456936194,13.2827,112.99,112.93,54.89775132]
[1644456936595,13.2817,113.0,112.93,54.89775132]
[1644456943102,43.40706511,112.99,112.93,53.03808602]
[1644456943301,13.284,112.98,112.93,12.484]
[1644456943500,4.426,112.97,112.93,12.484]
[1644456943703,4.426,112.97,112.93,12.46]
[1644456943901,5.67058932,112.98,112.93,12.46]
[1644456944304,35.52338365,112.97,112.93,12.46]
[1644456944502,36.76797297,112.97,112.93,12.484]
[1644456944703,50.05297297,112.97,112.93,12.46]
[1644456944903,14.52958932,112.97,112.93,12.46]
[1644456945606,14.52958932,112.97,112.92,41.0308827]
[1644456945807,60.29578543,112.97,112.92,41.0308827]
[1644456946909,4.426,112.96,112.92,41.0308827]
[1644456947109,13.2879,112.95,112.92,41.0308827]
[1644456947313,6.06439994,112.94,112.91,12.46]
[1644456948212,6.06439994,112.94,112.92,35.6151271]
[1644456948612,13.2879,112.95,112.92,35.6151271]
[1644456950115,3.03219997,112.94,112.92,35.6151271]
[1644456950315,3.03219997,112.94,112.91,12.46]
[1644456951114,3.03219997,112.93,112.91,12.46]
[1644456951318,3.03219997,112.93,112.91,59.57047395]
[1644456951518,13.2879,112.95,112.91,59.57047395]
[1644456952317,4.426,112.97,112.91,59.57047395]
[1644456952518,13.2861,112.96,112.91,59.57047395]
[1644456953619,13.2861,112.96,112.91,12.46]
[1644456954623,13.2861,112.96,112.92,47.42407809]
[1644456954824,13.2861,112.96,112.92,59.88407809]
[1644456959126,13.2861,112.96,112.92,12.46]
[1644456959127,55.32430694,112.96,112.92,12.46]
[1644456959526,13.2861,112.96,112.92,12.46]
[1644456960527,13.2861,112.96,112.92,59.00558064]
[1644456960728,47.50819211,112.96,112.92,59.00558064]
[1644456961028,47.50819211,112.96,112.92,12.46]
[1644456962128,47.50819211,112.96,112.92,49.5474562]
[1644456962727,13.2861,112.96,112.92,49.5474562]
[1644456964329,1.24458932,112.99,112.92,51.4071215]
[1644456964531,25.58818932,113.0,112.93,0.024]
[1644456964729,25.58818932,113.0,112.93,12.484]
[1644456965330,66.89370776,113.0,112.94,43.94487592]
[1644456965531,71.31870776,113.0,112.94,43.94487592]
[1644456965933,30.01318932,113.0,112.94,43.94487592]
[1644456966131,13.2837,112.98,112.94,43.94487592]
[1644456966332,30.01318932,113.0,112.94,43.94487592]
[1644456966536,25.58818932,113.0,112.95,12.46]
[1644456966932,25.58818932,113.0,112.96,35.77614702]
[1644456967132,74.06028932,113.01,112.96,35.77614702]
[1644456967734,13.2824,112.99,112.96,35.77614702]
[1644456968134,6.06439994,112.98,112.95,12.46]
[1644456969038,19.34779994,112.98,112.95,12.46]
[1644456970835,18.84779994,112.98,112.95,12.46]
[1644456971238,18.84779994,112.98,112.96,37.17599869]
[1644456971438,5.56439994,112.98,112.96,37.17599869]
[1644456971837,13.2821,112.99,112.96,49.63599869]
[1644456974639,13.2821,112.99,112.97,0.5]
[1644456974862,13.2821,112.99,112.98,34.23353297]
[1644456975841,13.2821,112.99,112.96,12.46]
[1644456976041,5.56439994,112.98,112.96,12.46]
[1644456976846,5.56439994,112.98,112.96,47.18530764]
[1644456977043,5.56439994,112.98,112.97,0.5]
[1644456977845,13.2821,112.99,112.97,0.5]
[1644456978143,13.2821,112.99,112.98,37.95537884]
[1644456978945,14.52558932,113.0,112.98,37.95537884]
[1644456979349,2.53219997,112.99,112.98,37.95537884]
[1644456979546,1.24458932,113.0,112.98,37.95537884]
[1644456980849,1.24458932,113.01,112.99,0.5]
[1644456981351,3.03219997,113.0,112.98,37.95537884]
[1644456981549,4.27678929,113.0,112.98,37.95537884]
[1644456981751,17.55748929,113.0,112.98,37.95537884]
[1644456982973,4.27678929,113.0,112.98,37.95537884]
[1644456983272,2.53219997,112.99,112.98,37.95537884]
[1644456983473,3.03219997,113.0,112.98,37.95537884]
[1644456983671,4.27678929,113.0,112.99,0.5]
[1644456984374,3.03219997,113.0,112.99,0.5]
[1644456984576,4.27678929,113.0,112.99,0.5]
[1644456984973,6.80898926,113.0,112.98,37.95537884]
[1644456986874,5.56439994,113.0,112.98,37.95537884]
[1644456989578,5.56439994,113.0,112.98,38.45537884]
[1644456990277,14.52438932,113.01,112.98,38.45537884]
[1644456990880,1.24458932,113.0,112.98,38.45537884]
[1644456991080,1.24458932,113.0,112.96,12.46]
[1644456991081,13.282,112.99,112.96,12.46]
[1644456991283,14.52658932,112.99,112.97,0.5]
[1644456991481,14.52658932,112.99,112.95,12.46]
[1644456992083,14.52658932,112.99,112.96,36.06708794]
[1644456993982,14.52658932,112.99,112.95,12.46]
[1644456994984,14.52658932,112.99,112.95,54.62352693]
[1644457001292,14.52658932,112.99,112.95,56.48319223]
[1644457003695,53.67199003,112.99,112.95,12.46]
[1644457003897,1.24458932,112.98,112.95,12.46]
[1644457004097,18.84909994,112.97,112.95,12.46]
[1644457004697,5.56439994,112.97,112.95,12.46]
[1644457007297,5.56439994,112.97,112.95,12.96]
[1644457008197,5.56439994,112.97,112.95,12.46]
[1644457010196,5.56439994,112.97,112.96,38.11489171]
[1644457010998,5.56439994,112.97,112.95,12.46]
[1644457011197,27.67229994,112.97,112.94,12.46]
[1644457011401,27.67229994,112.97,112.92,0.024]
[1644457011598,4.426,112.96,112.91,36.9609]
[1644457012000,4.426,112.96,112.92,48.18461762]
[1644457012198,1.24458932,112.97,112.92,48.18461762]
[1644457012802,13.2861,112.96,112.92,48.18461762]
[1644457013102,13.2861,112.96,112.93,12.46]
[1644457013301,1.24458932,112.97,112.93,12.46]
[1644457013500,25.09908932,112.98,112.93,12.46]
[1644457013700,25.09908932,112.98,112.94,43.91914729]
[1644457013903,4.426,112.97,112.94,43.91914729]
[1644457014099,5.67058932,112.97,112.94,43.91914729]
[1644457014702,18.95538932,112.97,112.94,43.91914729]
[1644457014900,18.95538932,112.97,112.95,0.5]
[1644457015101,17.7108,112.97,112.95,0.5]
[1644457016401,2.53219997,112.96,112.95,0.5]
[1644457016602,2.53219997,112.96,112.94,43.91914729]
[1644457017902,2.53219997,112.96,112.95,0.5]
[1644457018306,2.53219997,112.96,112.94,43.91914729]
[1644457018803,3.03219997,112.95,112.94,43.91914729]
[1644457021308,3.03219997,112.95,112.94,56.37914729]
[1644457025334,2.53219997,112.96,112.94,56.87914729]
[1644457028143,14.52938932,112.97,112.94,56.87914729]
[1644457028342,13.2848,112.97,112.94,56.87914729]
[1644457028546,14.52938932,112.97,112.94,56.87914729]
[1644457029045,5.56439994,112.96,112.94,56.87914729]
[1644457029743,3.03219997,112.96,112.94,56.87914729]
[1644457030246,14.52938932,112.97,112.94,56.87914729]
[1644457031449,3.03219997,112.96,112.94,56.87914729]
[1644457031646,5.56439994,112.96,112.94,56.37914729]
[1644457032948,5.56439994,112.96,112.95,0.5]
[1644457033849,18.84959994,112.96,112.95,0.5]
[1644457034052,5.56439994,112.96,112.95,0.5]
[1644457034451,2.53219997,112.96,112.95,0.5]
[1644457034649,3.77678929,112.96,112.95,0.5]
[1644457035049,1.24458932,112.96,112.95,0.5]
[1644457036149,1.24458932,112.97,112.95,0.5]
[1644457036556,14.52908932,112.97,112.95,0.5]
[1644457038352,14.52908932,112.97,112.95,36.89656527]
[1644457038953,14.52908932,112.97,112.95,0.5]
[1644457040055,1.24458932,112.97,112.96,48.30988108]
[1644457040555,1.24458932,112.99,112.96,60.76988108]
[1644457040755,1.24458932,112.99,112.97,0.5]
[1644457040957,1.24458932,112.99,112.97,12.96]
[1644457041158,1.24458932,112.99,112.98,46.61249153]
[1644457041358,1.24458932,112.99,112.98,54.06549153]
[1644457041762,0.0354559,113.01,112.98,54.06549153]
[1644457041763,1.24458932,113.0,112.98,54.06549153]
[1644457042391,1.24458932,113.0,112.99,0.5]
[1644457044265,14.52468932,113.01,112.99,0.5]
[1644457045964,1.24458932,113.01,112.99,0.5]
[1644457046866,14.52328932,113.02,113.0,37.88320178]
[1644457047066,1.24458932,113.02,113.0,37.88320178]
[1644457047264,1.24458932,113.02,113.01,0.5]
[1644457049074,0.74458932,113.02,113.01,0.5]
[1644457050373,13.2776,113.03,113.01,0.5]
[1644457050575,13.2776,113.03,113.02,38.21653318]
[1644457050774,13.2763,113.04,113.02,38.21653318]
[1644457050974,4.4584559,113.06,113.02,38.21653318]
[1644457051174,4.423,113.06,113.02,38.21653318]
[1644457052176,0.0354559,113.07,113.02,50.67653318]
[1644457052375,51.19215733,113.09,113.02,50.67653318]
[1644457052577,6.94415733,113.09,113.02,61.55253318]
[1644457052777,6.94415733,113.09,113.03,6.0]
[1644457052778,0.0354559,113.09,113.03,6.0]
[1644457052977,0.0354559,113.1,113.04,16.882]
[1644457053281,0.0354559,113.11,113.04,16.882]
[1644457053478,13.2691,113.11,113.05,47.01338541]
[1644457053684,13.3045559,113.11,113.06,12.46]
[1644457053879,13.2691,113.11,113.07,45.85648949]
[1644457054280,53.72934876,113.11,113.06,12.46]
[1644457054483,58.15034876,113.11,113.06,12.46]
[1644457055479,58.15034876,113.11,113.06,53.51020634]
[1644457060705,17.6901,113.11,113.06,53.51020634]
[1644457061308,13.3033559,113.12,113.06,57.93120634]
[1644457061707,56.15991864,113.12,113.06,57.93120634]
[1644457062607,4.421,113.11,113.06,53.51020634]
[1644457063005,17.69,113.11,113.06,53.51020634]
[1644457064509,17.69,113.11,113.06,12.46]
[1644457065509,17.69,113.11,113.06,46.72346712]
[1644457066610,35.13053059,113.1,113.06,12.46]
[1644457066811,48.40093059,113.1,113.06,12.46]
[1644457067611,13.2704,113.1,113.06,12.46]
[1644457067811,0.0354559,113.11,113.06,12.46]
[1644457068012,13.3040559,113.12,113.06,12.46]
[1644457068612,13.3040559,113.12,113.07,36.48369762]
[1644457068810,13.3040559,113.12,113.07,48.94369762]
[1644457069914,17.7250559,113.12,113.07,48.94369762]
[1644457070612,45.55552439,113.11,113.07,48.94369762]
[1644457071013,58.82422439,113.11,113.07,12.46]
[1644457074616,58.82422439,113.11,113.07,50.70039196]
[1644457075316,58.82422439,113.11,113.07,12.46]
[1644457079419,61.30992582,113.11,113.07,12.46]
[1644457079621,4.421,113.1,113.05,12.46]
[1644457079819,13.2714,113.09,113.05,12.46]
[1644457082319,15.75710143,113.09,113.05,12.46]
[1644457082520,12.7714,113.09,113.05,12.46]
[1644457082723,17.1934,113.09,113.05,12.46]
[1644457083823,12.7714,113.09,113.05,12.46]
[1644457087229,15.75510143,113.1,113.05,25.7298]
[1644457092635,13.2694,113.1,113.05,25.7298]
[1644457093038,40.13215733,113.11,113.05,27.59498098]
[1644457093235,40.13215733,113.11,113.05,25.7298]
[1644457095337,15.78945733,113.11,113.05,25.7298]
[1644457095540,0.0354559,113.11,113.06,1.86518098]
[1644457095739,2.52115733,113.12,113.07,25.7254]
[1644457095937,2.48570143,113.13,113.07,25.7254]
[1644457096138,0.0354559,113.13,113.08,28.9831]
[1644457096339,2.52115733,113.14,113.09,35.37109521]
[1644457096540,0.0354559,113.13,113.09,35.37109521]
[1644457096739,15.75030143,113.14,113.09,47.83109521]
[1644457097141,15.75030143,113.14,113.09,61.09549521]
[1644457097640,2.48570143,113.14,113.09,61.09549521]
[1644457097840,42.98375733,113.15,113.09,61.09549521]
[1644457098043,2.5057405,113.14,113.09,61.09549521]
[1644457098242,42.98375733,113.15,113.09,61.09549521]
[1644457100768,38.56375733,113.15,113.09,61.09549521]
[1644457101367,15.78485733,113.15,113.09,62.9602229]
[1644457101568,13.2991559,113.15,113.09,62.9602229]
[1644457101768,0.0354559,113.15,113.09,74.6732229]
[1644457103170,0.0354559,113.15,113.1,4.42]
[1644457103369,0.0354559,113.15,113.11,25.7221]
[1644457107474,0.0354559,113.15,113.12,4.418]
[1644457107775,0.0354559,113.17,113.13,28.0837942]
[1644457107973,0.0354559,113.18,113.14,4.418]
[1644457108176,0.0354559,113.2,113.15,12.46]
[1644457108378,4.417,113.2,113.16,45.08985686]
[1644457108577,102.57981727,113.23,113.16,57.54985686]
[1644457108578,6.93815733,113.22,113.16,57.54985686]
[1644457108774,4.4524559,113.22,113.16,80.42385686]
[1644457108974,6.93815733,113.22,113.16,93.68025686]
[1644457109178,4.98209326,113.21,113.16,93.68025686]
[1644457109380,4.417,113.2,113.16,93.68025686]
[1644457109577,4.417,113.21,113.16,93.68025686]
[1644457109978,17.7082559,113.22,113.16,93.68025686]
[1644457110779,4.4524559,113.22,113.16,93.68025686]
[1644457111778,0.0354559,113.22,113.16,93.68025686]
[1644457112581,13.2911559,113.22,113.16,57.54985686]
[1644457112779,4.417,113.21,113.16,57.54985686]
[1644457114379,40.4167974,113.2,113.16,57.54985686]
[1644457114579,17.677,113.19,113.16,57.54985686]
[1644457115082,3.03219997,113.18,113.16,12.46]
[1644457115282,5.56439994,113.18,113.16,12.46]
[1644457115886,18.82469994,113.18,113.13,12.46]
[1644457116086,4.418,113.17,113.13,60.17189609]
[1644457116682,4.418,113.18,113.13,60.17189609]
[1644457117685,13.2627,113.16,113.13,60.17189609]
[1644457118086,2.53219997,113.15,113.13,60.17189609]
[1644457118587,2.53219997,113.15,113.13,60.67189609]
[1644457118787,3.03219997,113.14,113.13,60.17189609]
[1644457118985,2.53219997,113.15,113.13,47.71189609]
[1644457119686,2.53219997,113.15,113.11,35.6436]
[1644457120686,2.53219997,113.15,113.12,34.61618329]
[1644457120887,2.53219997,113.15,113.13,0.5]
[1644457121288,5.56439994,113.15,113.13,0.5]
[1644457123290,5.56439994,113.15,113.12,34.61618329]
[1644457123695,18.82829994,113.15,113.11,35.6436]
[1644457124491,5.56439994,113.15,113.11,35.6436]
[1644457124692,18.82829994,113.15,113.11,12.46]
[1644457124993,42.14555945,113.14,113.11,12.46]
[1644457125393,42.14555945,113.14,113.05,200.027]
[1644457125593,42.14555945,113.14,113.06,36.4123]
[1644457125594,27.5634,113.13,113.06,36.4123]
[1644457125793,49.2650559,113.13,113.06,36.4123]
[1644457126198,49.2650559,113.13,113.07,41.06602867]
[1644457126391,49.2650559,113.13,113.07,53.52602867]
[1644457129094,40.8650559,113.13,113.07,53.52602867]
[1644457130095,40.8650559,113.13,113.07,12.46]
[1644457135401,36.4440559,113.13,113.07,12.46]
[1644457140229,40.8640559,113.13,113.07,12.46]
[1644457142529,40.8640559,113.13,113.04,29.3286]
[1644457142831,2.94735121,113.12,113.02,4.421]
[1644457143031,13.2759,113.09,113.01,12.46]
[1644457143230,21.7589,113.09,113.01,16.882]
[1644457143429,41.21013047,113.08,113.01,16.882]
[1644457144733,13.2761,113.06,113.01,16.882]
[1644457144935,13.2761,113.06,113.01,12.46]
[1644457146133,13.2761,113.06,113.0,4.423]
[1644457146735,53.92619207,113.04,113.0,4.423]
[1644457147737,53.92619207,113.04,112.97,4.423]
[1644457148037,13.282,113.01,112.96,80.39025253]
[1644457148237,13.282,113.01,112.96,80.41425253]
[1644457149236,39.10977626,113.0,112.96,35.3869]
[1644457149436,13.2826,112.99,112.96,12.484]
[1644457149643,5.56439994,112.98,112.96,0.024]
[1644457149837,5.56439994,112.98,112.94,0.024]
[1644457149838,16.22439994,112.98,112.94,0.024]
[1644457150241,5.56439994,112.98,112.94,0.024]
[1644457150437,5.56439994,112.98,112.95,1.84555925]
[1644457150636,5.56439994,112.98,112.95,14.30555925]
[1644457150839,4.426,113.06,112.96,0.5]
[1644457151037,45.59438713,113.05,112.97,35.95220693]
[1644457152137,13.2799,113.03,112.97,35.95220693]
[1644457156439,13.2799,113.03,112.97,37.79776618]
[1644457156839,13.2763,113.05,112.98,16.884]
[1644457157239,13.2763,113.05,112.98,18.72955925]
[1644457157744,13.2763,113.05,112.98,32.00555925]
[1644457162853,13.2763,113.05,112.98,14.30555925]
[1644457163059,13.2763,113.05,112.98,12.46]
[1644457163253,21.9593,113.05,112.98,12.46]
[1644457164057,44.68432656,113.03,112.99,6.0]
[1644457164257,57.96342656,113.03,112.99,6.0]
[1644457165358,57.96342656,113.03,112.98,12.46]
[1644457169386,59.21365654,113.03,112.98,12.46]
[1644457169587,67.55165654,113.03,112.98,12.46]
[1644457170186,13.281,113.01,112.98,12.46]
[1644457170388,5.56439994,113.0,112.98,12.46]
[1644457170591,13.63239994,113.0,112.98,12.46]
[1644457172291,5.56439994,113.0,112.98,12.46]
[1644457172490,5.56439994,113.0,112.96,12.484]
[1644457176393,5.56439994,113.0,112.96,14.32955925]
[1644457177597,5.56439994,113.0,112.96,18.75455925]
[1644457178701,5.56439994,113.0,112.96,14.32955925]
[1644457179599,5.56439994,113.0,112.96,12.484]
[1644457180699,5.56439994,113.0,112.96,25.763]
[1644457180900,5.56439994,113.0,112.96,27.60855925]
[1644457181099,3.03219997,113.0,112.96,27.60855925]
[1644457181308,3.03219997,113.0,112.96,27.85855925]
[1644457181599,3.03219997,113.0,112.96,27.60855925]
[1644457181999,3.03219997,113.0,112.97,19.2772]
[1644457182200,3.03219997,113.0,112.98,12.96]
[1644457182601,61.62226026,113.03,112.99,43.36086054]
[1644457182804,61.62226026,113.03,112.99,55.82086054]
[1644457183402,18.95282998,113.03,112.99,55.82086054]
[1644457183603,14.52782998,113.03,112.99,55.82086054]
[1644457183807,4.424,113.02,112.99,12.46]
[1644457184004,13.2788,113.02,112.97,12.46]
[1644457184204,4.424,113.01,112.97,12.46]
[1644457184604,5.67422998,113.01,112.97,12.46]
[1644457184804,38.75694237,113.01,112.97,12.46]
[1644457185005,4.425,113.0,112.97,12.46]
[1644457185206,2.53219997,112.99,112.97,12.46]
[1644457185705,2.53219997,112.99,112.96,4.448]
[1644457185906,4.425,112.98,112.96,0.024]
[1644457186109,4.425,112.98,112.94,0.024]
[1644457186311,4.425,112.98,112.93,22.9755]
[1644457186509,4.425,112.98,112.93,22.9995]
[1644457186711,17.7093,112.98,112.94,35.68114236]
[1644457189009,13.2843,112.98,112.94,35.68114236]
[1644457197418,13.282,112.99,112.95,14.30555925]
[1644457197617,5.67622998,113.01,112.95,14.32955925]
[1644457197818,5.67522998,113.02,112.95,43.19425925]
[1644457198017,5.67522998,113.02,112.96,1.84555925]
[1644457198216,1.25022998,113.03,112.97,12.46]
[1644457198417,4.424,113.02,112.98,35.45857071]
[1644457198618,4.424,113.02,112.98,47.91857071]
[1644457200841,4.424,113.02,112.98,61.19547071]
[1644457201040,4.424,113.02,112.98,63.04102996]
[1644457201240,14.52652998,113.04,112.98,63.04102996]
[1644457201241,13.2763,113.04,112.98,63.04102996]
[1644457201842,14.52652998,113.04,112.98,63.04102996]
[1644457202044,14.52652998,113.04,112.99,6.0]
[1644457202241,14.52652998,113.04,113.0,12.46]
[1644457202441,13.2763,113.04,113.0,12.46]
[1644457203642,17.6993,113.04,113.0,12.46]
[1644457204348,14.52542998,113.05,113.0,24.41342655]
[1644457204550,24.38372998,113.06,113.0,24.41342655]
[1644457204747,1.25022998,113.07,113.01,4.423]
[1644457204950,1.25022998,113.07,113.02,12.46]
[1644457205349,1.25022998,113.08,113.02,12.46]
[1644457205549,1.25022998,113.08,113.03,47.80577363]
[1644457205752,1.25022998,113.08,113.03,84.21057363]
[1644457205955,1.25022998,113.08,113.03,92.46957363]
[1644457206150,1.25022998,113.08,113.04,1.84142655]
[1644457206350,1.25022998,113.08,113.05,12.46]
[1644457206552,1.25022998,113.1,113.05,12.46]
[1644457206750,1.25022998,113.11,113.05,52.09111903]
[1644457207153,1.25022998,113.12,113.05,52.09111903]
[1644457207552,1.25022998,113.12,113.07,45.58114802]
[1644457207753,1.25022998,113.12,113.07,58.04114802]
[1644457208152,1.28576677,113.13,113.07,58.04114802]
[1644457208753,1.28576677,113.13,113.07,69.61056705]
[1644457208952,1.28576677,113.13,113.07,69.36056705]
[1644457208953,0.03553679,113.13,113.07,69.36056705]
[1644457209154,0.03553679,113.13,113.08,6.0]
[1644457209353,1.28576677,113.14,113.09,12.46]
[1644457209553,0.03553679,113.13,113.09,12.46]
[1644457209756,4.42,113.14,113.09,12.46]
[1644457211556,1.25022998,113.16,113.09,12.46]
[1644457211557,4.45553679,113.15,113.09,12.46]
[1644457212159,4.45553679,113.15,113.09,25.7228]
[1644457212859,4.45553679,113.15,113.09,27.5634608]
[1644457213059,4.45553679,113.15,113.1,6.0]
[1644457213264,4.45553679,113.15,113.11,60.31942336]
[1644457213561,0.03553679,113.15,113.11,60.31942336]
[1644457213760,4.418,113.14,113.11,47.85942336]
[1644457213962,2.53219997,113.13,113.11,47.85942336]
[1644457214160,4.418,113.15,113.12,0.5]
[1644457214361,3.03219997,113.14,113.12,0.5]
[1644457216561,13.2649,113.15,113.12,0.5]
[1644457217161,2.53219997,113.14,113.12,0.5]